[Event "Titled Tuesday Blitz February 22 Early 2022"]
[White "Kozak, Alexander"]
[Black "Samunenkov, Ihor"]
[WhiteFideId "4135881"]
[BlackFideId "14187086"]
[WhiteElo "2251"]
[BlackElo "2406"]
[Result "0-1"]
[Round "05"]
[TimeControl "180+1"]
[Date "2022.02.22"]
[WhiteClock "0:00:01"]
[BlackClock "0:00:02"]

1. e4 {[%clk 0:02:56]}  c5 {[%clk 0:02:58]} 2. c3 {[%clk 0:02:55]}  Nf6 {[%clk 0:02:57]} 3. e5 {[%clk 0:02:55]}  Nd5 {[%clk 0:02:58]} 4. d4 {[%clk 0:02:55]}  cxd4 {[%clk 0:02:59]} 5. Nf3 {[%clk 0:02:54]}  Nc6 {[%clk 0:02:58]} 6. Bc4 {[%clk 0:02:55]}  Nb6 {[%clk 0:02:58]} 7. Bb3 {[%clk 0:02:55]}  d5 {[%clk 0:02:58]} 8. exd6 {[%clk 0:02:55]}  Qxd6 {[%clk 0:02:58]} 9. O-O {[%clk 0:02:56]}  Be6 {[%clk 0:02:47]} 10. Na3 {[%clk 0:02:55]}  Bxb3 {[%clk 0:02:15]} 11. axb3 {[%clk 0:02:55]}  a6 {[%clk 0:02:07]} 12. Qe2 {[%clk 0:02:52]}  g6 {[%clk 0:01:31]} 13. Rd1 {[%clk 0:02:44]}  Bg7 {[%clk 0:01:31]} 14. cxd4 {[%clk 0:02:35]}  Nd5 {[%clk 0:01:25]} 15. Nc4 {[%clk 0:02:19]}  Qd8 {[%clk 0:01:18]} 16. Nce5 {[%clk 0:01:57]}  O-O {[%clk 0:01:12]} 17. Nxc6 {[%clk 0:01:56]}  bxc6 {[%clk 0:01:13]} 18. Ne5 {[%clk 0:01:55]}  Nb4 {[%clk 0:00:55]} 19. Ra4 {[%clk 0:01:26]}  a5 {[%clk 0:00:51]} 20. Bd2 {[%clk 0:01:20]}  Qxd4 {[%clk 0:00:45]} 21. Bc3 {[%clk 0:01:19]}  Qc5 {[%clk 0:00:28]} 22. Nd7 {[%clk 0:01:18]}  Qb5 {[%clk 0:00:28]} 23. Qxe7 {[%clk 0:01:03]}  Nd5 {[%clk 0:00:24]} 24. Qe1 {[%clk 0:00:42]}  Rfe8 {[%clk 0:00:21]} 25. Qd2 {[%clk 0:00:41]}  Rad8 {[%clk 0:00:18]} 26. Bxg7 {[%clk 0:00:38]}  Kxg7 {[%clk 0:00:12]} 27. Qd4+ {[%clk 0:00:32]}  Kg8 {[%clk 0:00:10]} 28. Nc5 {[%clk 0:00:20]}  Qe2 {[%clk 0:00:06]} 29. h3 {[%clk 0:00:19]}  Rb8 {[%clk 0:00:03]} 30. Raa1 {[%clk 0:00:17]}  Rb4 {[%clk 0:00:03]} 31. Qd2 {[%clk 0:00:14]}  Qxd2 {[%clk 0:00:02]} 32. Rxd2 {[%clk 0:00:14]}  Rb5 {[%clk 0:00:02]} 33. Rc1 {[%clk 0:00:14]}  Kg7 {[%clk 0:00:02]} 34. Rdc2 {[%clk 0:00:13]}  h5 {[%clk 0:00:02]} 35. Na4 {[%clk 0:00:11]}  Nb4 {[%clk 0:00:02]} 36. Rc5 {[%clk 0:00:11]}  Nd3 {[%clk 0:00:02]} 37. Rxb5 {[%clk 0:00:09]}  cxb5 {[%clk 0:00:03]} 38. Rd1 {[%clk 0:00:08]}  Nb4 {[%clk 0:00:02]} 39. Nc3 {[%clk 0:00:07]}  Re5 {[%clk 0:00:02]} 40. Rd7 {[%clk 0:00:06]}  Nc2 {[%clk 0:00:01]} 41. Rb7 {[%clk 0:00:05]}  Nd4 {[%clk 0:00:01]} 42. h4 {[%clk 0:00:03]}  b4 {[%clk 0:00:02]} 43. Na4 {[%clk 0:00:02]}  Nxb3 {[%clk 0:00:02]} 44. Kh2 {[%clk 0:00:01]}  Nd4 {[%clk 0:00:02]} 0-1


[Site "https://www.chess.com"]

[Event "Titled Tuesday Blitz February 22 Early 2022"]
[White "Krsnik Cohar, Ivan Vihor"]
[Black "Novikov, Evgenij"]
[WhiteFideId "14520044"]
[BlackFideId "4125380"]
[WhiteElo "2414"]
[BlackElo "2242"]
[Result "1/2-1/2"]
[Round "05"]
[TimeControl "180+1"]
[Date "2022.02.22"]
[WhiteClock "0:01:07"]
[BlackClock "0:00:07"]

1. d4 {[%clk 0:03:00]}  d5 {[%clk 0:02:43]} 2. Bg5 {[%clk 0:02:56]}  h6 {[%clk 0:02:41]} 3. Bh4 {[%clk 0:02:56]}  Nf6 {[%clk 0:02:36]} 4. Nd2 {[%clk 0:02:56]}  e6 {[%clk 0:02:29]} 5. e3 {[%clk 0:02:56]}  c5 {[%clk 0:02:26]} 6. c3 {[%clk 0:02:56]}  Nc6 {[%clk 0:02:26]} 7. f4 {[%clk 0:02:56]}  cxd4 {[%clk 0:02:11]} 8. exd4 {[%clk 0:02:57]}  Be7 {[%clk 0:02:04]} 9. Ngf3 {[%clk 0:02:54]}  Ne4 {[%clk 0:02:00]} 10. Bg3 {[%clk 0:02:54]}  O-O {[%clk 0:01:45]} 11. Bd3 {[%clk 0:02:48]}  f5 {[%clk 0:01:45]} 12. O-O {[%clk 0:02:48]}  Qb6 {[%clk 0:01:40]} 13. Rb1 {[%clk 0:02:46]}  Bf6 {[%clk 0:01:39]} 14. Kh1 {[%clk 0:02:37]}  Bd7 {[%clk 0:01:31]} 15. Ne5 {[%clk 0:02:35]}  Nxe5 {[%clk 0:01:22]} 16. fxe5 {[%clk 0:02:36]}  Bg5 {[%clk 0:01:11]} 17. Nb3 {[%clk 0:02:31]}  Bb5 {[%clk 0:01:04]} 18. Bf4 {[%clk 0:02:22]}  Bxf4 {[%clk 0:00:58]} 19. Rxf4 {[%clk 0:02:23]}  g5 {[%clk 0:00:58]} 20. Rf1 {[%clk 0:02:22]}  Kg7 {[%clk 0:00:55]} 21. Qe2 {[%clk 0:02:20]}  Bxd3 {[%clk 0:00:54]} 22. Qxd3 {[%clk 0:02:21]}  a5 {[%clk 0:00:53]} 23. Nd2 {[%clk 0:02:18]}  Qa6 {[%clk 0:00:48]} 24. Qe3 {[%clk 0:02:12]}  f4 {[%clk 0:00:26]} 25. Qe1 {[%clk 0:02:12]}  Qd3 {[%clk 0:00:26]} 26. Rd1 {[%clk 0:02:06]}  Nxd2 {[%clk 0:00:21]} 27. Rxd2 {[%clk 0:02:06]}  Qf5 {[%clk 0:00:20]} 28. Qe2 {[%clk 0:02:03]}  Rf7 {[%clk 0:00:20]} 29. Qb5 {[%clk 0:02:02]}  h5 {[%clk 0:00:17]} 30. Rdf2 {[%clk 0:01:59]}  Qe4 {[%clk 0:00:16]} 31. Qb6 {[%clk 0:01:51]}  Qg6 {[%clk 0:00:16]} 32. a4 {[%clk 0:01:45]}  g4 {[%clk 0:00:16]} 33. Kg1 {[%clk 0:01:31]}  Raf8 {[%clk 0:00:15]} 34. Qxa5 {[%clk 0:01:29]}  h4 {[%clk 0:00:15]} 35. Qb5 {[%clk 0:01:26]}  g3 {[%clk 0:00:15]} 36. Rf3 {[%clk 0:01:26]}  Kh7 {[%clk 0:00:09]} 37. Qd3 {[%clk 0:01:24]}  Qxd3 {[%clk 0:00:06]} 38. Rxd3 {[%clk 0:01:24]}  Ra8 {[%clk 0:00:06]} 39. Rdf3 {[%clk 0:01:24]}  Rxa4 {[%clk 0:00:05]} 40. hxg3 {[%clk 0:01:20]}  hxg3 {[%clk 0:00:06]} 41. Rxf4 {[%clk 0:01:20]}  Rxf4 {[%clk 0:00:05]} 42. Rxf4 {[%clk 0:01:20]}  Ra1+ {[%clk 0:00:04]} 43. Rf1 {[%clk 0:01:21]}  Ra2 {[%clk 0:00:05]} 44. Rb1 {[%clk 0:01:21]}  Kg6 {[%clk 0:00:04]} 45. Kf1 {[%clk 0:01:22]}  Kf5 {[%clk 0:00:05]} 46. Ke2 {[%clk 0:01:22]}  Ke4 {[%clk 0:00:05]} 47. Kd2 {[%clk 0:01:23]}  b5 {[%clk 0:00:05]} 48. Re1+ {[%clk 0:01:23]}  Kf4 {[%clk 0:00:05]} 49. Kc2 {[%clk 0:01:23]}  Ra6 {[%clk 0:00:03]} 50. Rf1+ {[%clk 0:01:24]}  Kg4 {[%clk 0:00:03]} 51. Rf6 {[%clk 0:01:23]}  Rc6 {[%clk 0:00:03]} 52. Kb3 {[%clk 0:01:21]}  Ra6 {[%clk 0:00:03]} 53. Kb4 {[%clk 0:01:20]}  Ra2 {[%clk 0:00:03]} 54. Kb3 {[%clk 0:01:21]}  Ra6 {[%clk 0:00:03]} 55. Kc2 {[%clk 0:01:18]}  Rb6 {[%clk 0:00:03]} 56. Kd2 {[%clk 0:01:18]}  Ra6 {[%clk 0:00:03]} 57. Ke3 {[%clk 0:01:15]}  Ra2 {[%clk 0:00:03]} 58. Rg6+ {[%clk 0:01:14]}  Kh4 {[%clk 0:00:02]} 59. Kf3 {[%clk 0:01:09]}  Rxb2 {[%clk 0:00:02]} 60. Rh6+ {[%clk 0:01:09]}  Kg5 {[%clk 0:00:02]} 61. Rxe6 {[%clk 0:01:09]}  Rc2 {[%clk 0:00:01]} 62. Kxg3 {[%clk 0:01:05]}  Rxc3+ {[%clk 0:00:01]} 63. Kf2 {[%clk 0:01:05]}  Rd3 {[%clk 0:00:02]} 64. Rb6 {[%clk 0:01:04]}  Rxd4 {[%clk 0:00:02]} 65. e6 {[%clk 0:01:04]}  Kf6 {[%clk 0:00:02]} 66. Ke3 {[%clk 0:01:03]}  Re4+ {[%clk 0:00:02]} 67. Kf3 {[%clk 0:01:03]}  Rxe6 {[%clk 0:00:03]} 68. Rxb5 {[%clk 0:01:04]}  Ke5 {[%clk 0:00:03]} 69. g4 {[%clk 0:01:03]}  Rf6+ {[%clk 0:00:04]} 70. Kg3 {[%clk 0:01:04]}  Kd4 {[%clk 0:00:04]} 71. g5 {[%clk 0:01:04]}  Rg6 {[%clk 0:00:04]} 72. Kg4 {[%clk 0:01:05]}  Kc4 {[%clk 0:00:04]} 73. Rb1 {[%clk 0:01:05]}  d4 {[%clk 0:00:04]} 74. Kf5 {[%clk 0:01:05]}  Rg8 {[%clk 0:00:05]} 75. g6 {[%clk 0:01:05]}  d3 {[%clk 0:00:05]} 76. Kf6 {[%clk 0:01:05]}  Kc3 {[%clk 0:00:06]} 77. Kf7 {[%clk 0:01:06]}  Rxg6 {[%clk 0:00:05]} 78. Kxg6 {[%clk 0:01:07]}  d2 {[%clk 0:00:05]} 79. Kf5 {[%clk 0:01:07]}  Kc2 {[%clk 0:00:06]} 80. Ra1 {[%clk 0:01:07]}  d1=Q {[%clk 0:00:06]} 81. Rxd1 {[%clk 0:01:07]}  Kxd1 {[%clk 0:00:07]} 1/2-1/2


[Site "https://www.chess.com"]

[Event "Titled Tuesday Blitz February 22 Early 2022"]
[White "Lazavik, Denis"]
[Black "Perez Ponsa, Federico"]
[WhiteFideId "13515110"]
[BlackFideId "117927"]
[WhiteElo "2436"]
[BlackElo "2672"]
[Result "1-0"]
[Round "05"]
[TimeControl "180+1"]
[Date "2022.02.22"]
[WhiteClock "0:00:12"]
[BlackClock "0:00:27"]

1. d4 {[%clk 0:03:00]}  Nf6 {[%clk 0:02:27]} 2. c4 {[%clk 0:02:57]}  e6 {[%clk 0:02:27]} 3. Nf3 {[%clk 0:02:57]}  d5 {[%clk 0:02:27]} 4. g3 {[%clk 0:02:57]}  Be7 {[%clk 0:02:25]} 5. Bg2 {[%clk 0:02:57]}  O-O {[%clk 0:02:26]} 6. O-O {[%clk 0:02:57]}  dxc4 {[%clk 0:02:27]} 7. Qc2 {[%clk 0:02:56]}  a6 {[%clk 0:02:27]} 8. a4 {[%clk 0:02:56]}  Bd7 {[%clk 0:02:20]} 9. Qxc4 {[%clk 0:02:44]}  Bc6 {[%clk 0:02:20]} 10. Bg5 {[%clk 0:02:42]}  Nbd7 {[%clk 0:02:20]} 11. Nc3 {[%clk 0:02:40]}  a5 {[%clk 0:02:18]} 12. Rfe1 {[%clk 0:02:37]}  Bd5 {[%clk 0:02:03]} 13. Qd3 {[%clk 0:02:34]}  b6 {[%clk 0:01:54]} 14. e4 {[%clk 0:02:23]}  Bb7 {[%clk 0:01:54]} 15. Rad1 {[%clk 0:02:23]}  h6 {[%clk 0:01:54]} 16. Bf4 {[%clk 0:02:04]}  Nh5 {[%clk 0:01:53]} 17. Bc1 {[%clk 0:01:50]}  Nhf6 {[%clk 0:01:53]} 18. d5 {[%clk 0:01:08]}  Nc5 {[%clk 0:01:50]} 19. Qc2 {[%clk 0:00:48]}  exd5 {[%clk 0:01:50]} 20. e5 {[%clk 0:00:49]}  Nfe4 {[%clk 0:01:51]} 21. Nxe4 {[%clk 0:00:47]}  Nxe4 {[%clk 0:01:51]} 22. Rxe4 {[%clk 0:00:47]}  dxe4 {[%clk 0:01:50]} 23. Rxd8 {[%clk 0:00:47]}  Raxd8 {[%clk 0:01:30]} 24. Nd2 {[%clk 0:00:44]}  Bb4 {[%clk 0:01:21]} 25. Nxe4 {[%clk 0:00:43]}  Rfe8 {[%clk 0:01:19]} 26. Nf6+ {[%clk 0:00:40]}  gxf6 {[%clk 0:01:14]} 27. Bxb7 {[%clk 0:00:41]}  Rxe5 {[%clk 0:01:15]} 28. Bxh6 {[%clk 0:00:38]}  Bc5 {[%clk 0:01:13]} 29. Be3 {[%clk 0:00:26]}  Bxe3 {[%clk 0:01:06]} 30. fxe3 {[%clk 0:00:27]}  Rxe3 {[%clk 0:01:07]} 31. Kg2 {[%clk 0:00:26]}  Rde8 {[%clk 0:01:06]} 32. Bf3 {[%clk 0:00:25]}  c5 {[%clk 0:01:05]} 33. Qf5 {[%clk 0:00:25]}  R8e6 {[%clk 0:01:06]} 34. h4 {[%clk 0:00:23]}  R3e5 {[%clk 0:01:06]} 35. Qf4 {[%clk 0:00:23]}  Kf8 {[%clk 0:01:07]} 36. h5 {[%clk 0:00:23]}  Rg5 {[%clk 0:01:06]} 37. h6 {[%clk 0:00:24]}  Kg8 {[%clk 0:01:07]} 38. Be4 {[%clk 0:00:22]}  Rxe4 {[%clk 0:00:41]} 39. Qxe4 {[%clk 0:00:22]}  Rg6 {[%clk 0:00:41]} 40. Qh4 {[%clk 0:00:23]}  Kh7 {[%clk 0:00:42]} 41. Qh5 {[%clk 0:00:23]}  c4 {[%clk 0:00:38]} 42. Kf3 {[%clk 0:00:22]}  Kg8 {[%clk 0:00:38]} 43. h7+ {[%clk 0:00:22]}  Kh8 {[%clk 0:00:38]} 44. g4 {[%clk 0:00:20]}  Rg7 {[%clk 0:00:38]} 45. Qb5 {[%clk 0:00:20]}  Rxh7 {[%clk 0:00:35]} 46. Qxb6 {[%clk 0:00:21]}  Kg7 {[%clk 0:00:32]} 47. Qxa5 {[%clk 0:00:20]}  Rh3+ {[%clk 0:00:33]} 48. Kf4 {[%clk 0:00:20]}  Rb3 {[%clk 0:00:34]} 49. Qd2 {[%clk 0:00:20]}  Rd3 {[%clk 0:00:34]} 50. Qc2 {[%clk 0:00:16]}  Rd4+ {[%clk 0:00:34]} 51. Kg3 {[%clk 0:00:16]}  Kf8 {[%clk 0:00:32]} 52. a5 {[%clk 0:00:16]}  Rd5 {[%clk 0:00:32]} 53. Qc3 {[%clk 0:00:12]}  Kg7 {[%clk 0:00:27]} 54. Qb4 {[%clk 0:00:12]}  Rd3+ {[%clk 0:00:27]} 55. Kf2 {[%clk 0:00:12]}  c3 {[%clk 0:00:23]} 56. bxc3 {[%clk 0:00:12]}  Rd2+ {[%clk 0:00:24]} 57. Ke3 {[%clk 0:00:12]}  Rd8 {[%clk 0:00:25]} 58. a6 {[%clk 0:00:12]}  Re8+ {[%clk 0:00:26]} 59. Kf3 {[%clk 0:00:12]}  Rd8 {[%clk 0:00:26]} 60. Qb7 {[%clk 0:00:12]}  Ra8 {[%clk 0:00:27]} 61. Qxa8 {[%clk 0:00:12]} 1-0


[Site "https://www.chess.com"]

[Event "Titled Tuesday Blitz February 22 Early 2022"]
[White "Leiva, Gianmarco"]
[Black "Popadic, Dragan"]
[WhiteFideId "3804399"]
[BlackFideId "913650"]
[WhiteElo "2328"]
[BlackElo "2199"]
[Result "1-0"]
[Round "05"]
[TimeControl "180+1"]
[Date "2022.02.22"]
[WhiteClock "0:00:40"]
[BlackClock "0:01:01"]

1. e4 {[%clk 0:03:00]}  c5 {[%clk 0:02:59]} 2. Nf3 {[%clk 0:03:01]}  Nc6 {[%clk 0:02:59]} 3. Bb5 {[%clk 0:02:58]}  e5 {[%clk 0:02:58]} 4. O-O {[%clk 0:02:54]}  d6 {[%clk 0:02:58]} 5. c3 {[%clk 0:02:50]}  Bd7 {[%clk 0:02:58]} 6. d4 {[%clk 0:02:44]}  Qc7 {[%clk 0:02:58]} 7. Re1 {[%clk 0:02:40]}  Nf6 {[%clk 0:02:57]} 8. h3 {[%clk 0:02:39]}  Be7 {[%clk 0:02:57]} 9. Nbd2 {[%clk 0:02:34]}  a6 {[%clk 0:02:56]} 10. Ba4 {[%clk 0:02:33]}  b5 {[%clk 0:02:56]} 11. Bb3 {[%clk 0:02:32]}  O-O {[%clk 0:02:55]} 12. Nf1 {[%clk 0:02:31]}  Na5 {[%clk 0:02:36]} 13. Bc2 {[%clk 0:02:31]}  Rac8 {[%clk 0:02:34]} 14. dxe5 {[%clk 0:02:23]}  dxe5 {[%clk 0:02:33]} 15. Ng3 {[%clk 0:02:22]}  h6 {[%clk 0:02:29]} 16. Nh4 {[%clk 0:02:19]}  Rfd8 {[%clk 0:02:22]} 17. Qf3 {[%clk 0:02:20]}  Bc6 {[%clk 0:02:13]} 18. Nhf5 {[%clk 0:02:19]}  Nc4 {[%clk 0:02:09]} 19. Nxe7+ {[%clk 0:01:46]}  Qxe7 {[%clk 0:02:08]} 20. Nf5 {[%clk 0:01:47]}  Qe6 {[%clk 0:02:01]} 21. Qg3 {[%clk 0:01:44]}  Ne8 {[%clk 0:01:49]} 22. Nxh6+ {[%clk 0:01:30]}  Kf8 {[%clk 0:01:44]} 23. Nf5 {[%clk 0:01:29]}  Nd2 {[%clk 0:01:34]} 24. Qh4 {[%clk 0:01:28]}  Nf6 {[%clk 0:01:21]} 25. Qh8+ {[%clk 0:01:14]}  Ng8 {[%clk 0:01:21]} 26. Qxg7+ {[%clk 0:01:14]}  Ke8 {[%clk 0:01:21]} 27. Qxg8+ {[%clk 0:01:12]}  Kd7 {[%clk 0:01:21]} 28. Qg5 {[%clk 0:01:00]}  Nc4 {[%clk 0:01:13]} 29. b3 {[%clk 0:00:54]}  Nd6 {[%clk 0:01:06]} 30. Nxd6 {[%clk 0:00:41]}  Kxd6 {[%clk 0:01:05]} 31. Be3 {[%clk 0:00:41]}  Bb7 {[%clk 0:01:01]} 32. Rad1+ {[%clk 0:00:41]}  Kc6 {[%clk 0:01:01]} 33. Rxd8 {[%clk 0:00:40]} 1-0


[Site "https://www.chess.com"]

[Event "Titled Tuesday Blitz February 22 Early 2022"]
[White "Lopez Mulet, Inigo"]
[Black "Namitbir Singh Walia"]
[WhiteFideId "22235620"]
[BlackFideId "35071068"]
[WhiteElo "2315"]
[BlackElo "1479"]
[Result "0-1"]
[Round "05"]
[TimeControl "180+1"]
[Date "2022.02.22"]
[WhiteClock "0:00:25"]
[BlackClock "0:00:09"]

1. b3 {[%clk 0:03:00]}  Nf6 {[%clk 0:02:57]} 2. Bb2 {[%clk 0:03:00]}  d5 {[%clk 0:02:56]} 3. f4 {[%clk 0:02:59]}  Bf5 {[%clk 0:02:56]} 4. Nf3 {[%clk 0:03:00]}  e6 {[%clk 0:02:56]} 5. e3 {[%clk 0:02:58]}  Nbd7 {[%clk 0:02:56]} 6. d3 {[%clk 0:02:58]}  c6 {[%clk 0:02:55]} 7. h3 {[%clk 0:02:57]}  h5 {[%clk 0:02:53]} 8. g3 {[%clk 0:02:58]}  Qb6 {[%clk 0:02:52]} 9. Qd2 {[%clk 0:02:52]}  Bb4 {[%clk 0:02:49]} 10. c3 {[%clk 0:02:51]}  Bc5 {[%clk 0:02:47]} 11. Nd4 {[%clk 0:02:47]}  Bxd4 {[%clk 0:02:39]} 12. cxd4 {[%clk 0:02:47]}  O-O {[%clk 0:02:34]} 13. Bg2 {[%clk 0:02:48]}  a5 {[%clk 0:02:30]} 14. Nc3 {[%clk 0:02:47]}  Qa6 {[%clk 0:02:30]} 15. O-O {[%clk 0:02:45]}  Qxd3 {[%clk 0:02:29]} 16. Qf2 {[%clk 0:02:41]}  Qc2 {[%clk 0:02:25]} 17. Rac1 {[%clk 0:02:36]}  Qxf2+ {[%clk 0:02:23]} 18. Rxf2 {[%clk 0:02:36]}  Nb6 {[%clk 0:02:23]} 19. Ba3 {[%clk 0:02:35]}  Rfc8 {[%clk 0:02:18]} 20. Be7 {[%clk 0:02:28]}  a4 {[%clk 0:02:14]} 21. Bxf6 {[%clk 0:02:17]}  gxf6 {[%clk 0:02:14]} 22. Kh2 {[%clk 0:02:14]}  axb3 {[%clk 0:02:13]} 23. axb3 {[%clk 0:02:15]}  Ra3 {[%clk 0:02:13]} 24. Rb2 {[%clk 0:02:15]}  Rca8 {[%clk 0:02:08]} 25. Bf3 {[%clk 0:02:16]}  Bg6 {[%clk 0:02:08]} 26. g4 {[%clk 0:02:11]}  hxg4 {[%clk 0:02:08]} 27. hxg4 {[%clk 0:02:12]}  Ra1 {[%clk 0:02:04]} 28. Rxa1 {[%clk 0:02:08]}  Rxa1 {[%clk 0:02:05]} 29. Kg3 {[%clk 0:01:56]}  Bd3 {[%clk 0:01:52]} 30. Be2 {[%clk 0:01:49]}  Bxe2 {[%clk 0:01:49]} 31. Nxe2 {[%clk 0:01:50]}  Kf8 {[%clk 0:01:42]} 32. Nc3 {[%clk 0:01:50]}  Rc1 {[%clk 0:01:39]} 33. Na4 {[%clk 0:01:50]}  Nd7 {[%clk 0:01:30]} 34. b4 {[%clk 0:01:44]}  Ke7 {[%clk 0:01:21]} 35. b5 {[%clk 0:01:42]}  c5 {[%clk 0:01:18]} 36. b6 {[%clk 0:01:28]}  cxd4 {[%clk 0:01:13]} 37. exd4 {[%clk 0:01:21]}  Rc4 {[%clk 0:01:13]} 38. Nc5 {[%clk 0:01:01]}  Nxc5 {[%clk 0:01:11]} 39. dxc5 {[%clk 0:01:01]}  Rxc5 {[%clk 0:01:12]} 40. Kf3 {[%clk 0:01:00]}  Rc3+ {[%clk 0:01:10]} 41. Ke2 {[%clk 0:01:00]}  Kd6 {[%clk 0:01:10]} 42. Kd2 {[%clk 0:00:59]}  Rc4 {[%clk 0:01:07]} 43. Ke3 {[%clk 0:00:58]}  Kc6 {[%clk 0:01:03]} 44. Rh2 {[%clk 0:00:57]}  Kd6 {[%clk 0:00:53]} 45. Rb2 {[%clk 0:00:51]}  Re4+ {[%clk 0:00:49]} 46. Kf3 {[%clk 0:00:50]}  e5 {[%clk 0:00:34]} 47. f5 {[%clk 0:00:49]}  Rf4+ {[%clk 0:00:29]} 48. Kg3 {[%clk 0:00:49]}  Rc4 {[%clk 0:00:29]} 49. Ra2 {[%clk 0:00:45]}  Rb4 {[%clk 0:00:27]} 50. Ra8 {[%clk 0:00:43]}  Rxb6 {[%clk 0:00:26]} 51. Rd8+ {[%clk 0:00:43]}  Kc5 {[%clk 0:00:17]} 52. Rd7 {[%clk 0:00:43]}  Kd4 {[%clk 0:00:17]} 53. Rxf7 {[%clk 0:00:43]}  e4 {[%clk 0:00:17]} 54. Kf4 {[%clk 0:00:41]}  Kd3 {[%clk 0:00:14]} 55. Re7 {[%clk 0:00:41]}  Rb4 {[%clk 0:00:13]} 56. g5 {[%clk 0:00:41]}  e3+ {[%clk 0:00:11]} 57. Kf3 {[%clk 0:00:41]}  Re4 {[%clk 0:00:07]} 58. gxf6 {[%clk 0:00:41]}  e2 {[%clk 0:00:07]} 59. Rxe4 {[%clk 0:00:23]}  dxe4+ {[%clk 0:00:08]} 60. Kf2 {[%clk 0:00:24]}  Kd2 {[%clk 0:00:08]} 61. f7 {[%clk 0:00:25]}  e1=Q+ {[%clk 0:00:08]} 62. Kg2 {[%clk 0:00:26]}  Qe2+ {[%clk 0:00:09]} 63. Kg3 {[%clk 0:00:25]}  Qf3+ {[%clk 0:00:09]} 64. Kh4 {[%clk 0:00:25]}  Qxf5 {[%clk 0:00:09]} 0-1


[Site "https://www.chess.com"]

[Event "Titled Tuesday Blitz February 22 Early 2022"]
[White "Lorente Serrano, Rosa Adela"]
[Black "Dilmukhametov, Artur"]
[WhiteFideId "32091982"]
[BlackFideId "24179922"]
[WhiteElo "1820"]
[BlackElo "2266"]
[Result "1-0"]
[Round "05"]
[TimeControl "180+1"]
[Date "2022.02.22"]
[WhiteClock "0:01:01"]
[BlackClock "0:00:29"]

1. Nf3 {[%clk 0:03:00]}  Nf6 {[%clk 0:02:22]} 2. g3 {[%clk 0:03:00]}  g6 {[%clk 0:02:22]} 3. b3 {[%clk 0:03:00]}  Bg7 {[%clk 0:02:22]} 4. Bb2 {[%clk 0:02:59]}  O-O {[%clk 0:02:23]} 5. Bg2 {[%clk 0:02:59]}  d6 {[%clk 0:02:23]} 6. d4 {[%clk 0:02:58]}  Nbd7 {[%clk 0:02:23]} 7. O-O {[%clk 0:02:58]}  Re8 {[%clk 0:02:22]} 8. c4 {[%clk 0:02:51]}  c6 {[%clk 0:02:21]} 9. Nc3 {[%clk 0:02:50]}  Qc7 {[%clk 0:02:19]} 10. Rc1 {[%clk 0:02:47]}  Qb8 {[%clk 0:02:15]} 11. Re1 {[%clk 0:02:42]}  e5 {[%clk 0:02:14]} 12. e4 {[%clk 0:02:31]}  exd4 {[%clk 0:02:13]} 13. Nxd4 {[%clk 0:02:31]}  Ne5 {[%clk 0:02:10]} 14. h3 {[%clk 0:02:30]}  a6 {[%clk 0:02:03]} 15. f4 {[%clk 0:02:25]}  Ned7 {[%clk 0:02:03]} 16. Kh2 {[%clk 0:02:21]}  Nh5 {[%clk 0:01:59]} 17. Qd2 {[%clk 0:01:58]}  Nc5 {[%clk 0:01:54]} 18. b4 {[%clk 0:01:57]}  Ne6 {[%clk 0:01:49]} 19. Nf3 {[%clk 0:01:54]}  d5 {[%clk 0:01:44]} 20. cxd5 {[%clk 0:01:53]}  cxd5 {[%clk 0:01:43]} 21. Nxd5 {[%clk 0:01:53]}  Kh8 {[%clk 0:01:24]} 22. Bxg7+ {[%clk 0:01:50]}  Nexg7 {[%clk 0:01:23]} 23. e5 {[%clk 0:01:47]}  Be6 {[%clk 0:01:18]} 24. Nc7 {[%clk 0:01:45]}  Rd8 {[%clk 0:01:14]} 25. Qf2 {[%clk 0:01:38]}  Nf5 {[%clk 0:01:04]} 26. Nxa8 {[%clk 0:01:31]}  Nfxg3 {[%clk 0:01:01]} 27. Nc7 {[%clk 0:01:29]}  Nf5 {[%clk 0:01:00]} 28. Ng5 {[%clk 0:01:26]}  Rd3 {[%clk 0:00:52]} 29. Ncxe6 {[%clk 0:01:17]}  fxe6 {[%clk 0:00:52]} 30. Red1 {[%clk 0:01:11]}  Rg3 {[%clk 0:00:38]} 31. Rd8+ {[%clk 0:01:07]}  Qxd8 {[%clk 0:00:37]} 32. Nf7+ {[%clk 0:01:08]}  Kg7 {[%clk 0:00:38]} 33. Nxd8 {[%clk 0:01:08]}  Kf8 {[%clk 0:00:37]} 34. Nxe6+ {[%clk 0:01:08]}  Ke7 {[%clk 0:00:37]} 35. Ng5 {[%clk 0:01:08]}  h6 {[%clk 0:00:37]} 36. Ne4 {[%clk 0:01:07]}  Ra3 {[%clk 0:00:36]} 37. Qc5+ {[%clk 0:01:06]}  Kf7 {[%clk 0:00:34]} 38. Qc7+ {[%clk 0:01:06]}  Kf8 {[%clk 0:00:29]} 39. Qd8+ {[%clk 0:01:04]}  Kf7 {[%clk 0:00:28]} 40. Rc7+ {[%clk 0:01:03]}  Ke6 {[%clk 0:00:29]} 41. Nc5# {[%clk 0:01:01]} 1-0


[Site "https://www.chess.com"]

[Event "Titled Tuesday Blitz February 22 Early 2022"]
[White "Magallanes, Rey Jomar"]
[Black "Loy, Konstantin"]
[WhiteFideId "5205948"]
[BlackFideId "14122499"]
[WhiteElo "2225"]
[BlackElo "2084"]
[Result "0-1"]
[Round "05"]
[TimeControl "180+1"]
[Date "2022.02.22"]
[WhiteClock "0:01:37"]
[BlackClock "0:00:57"]

1. e4 {[%clk 0:03:00]}  c5 {[%clk 0:02:58]} 2. Nf3 {[%clk 0:03:00]}  d6 {[%clk 0:02:58]} 3. d4 {[%clk 0:03:01]}  cxd4 {[%clk 0:02:59]} 4. Nxd4 {[%clk 0:03:00]}  Nf6 {[%clk 0:02:59]} 5. Nc3 {[%clk 0:02:59]}  g6 {[%clk 0:03:00]} 6. Be3 {[%clk 0:02:58]}  Bg7 {[%clk 0:03:00]} 7. Bc4 {[%clk 0:02:56]}  O-O {[%clk 0:03:00]} 8. h3 {[%clk 0:02:54]}  Nc6 {[%clk 0:03:01]} 9. O-O {[%clk 0:02:54]}  Nxe4 {[%clk 0:02:52]} 10. Nxe4 {[%clk 0:02:44]}  d5 {[%clk 0:02:52]} 11. Bb5 {[%clk 0:02:38]}  Nxd4 {[%clk 0:02:42]} 12. Bxd4 {[%clk 0:02:37]}  dxe4 {[%clk 0:02:42]} 13. Bxg7 {[%clk 0:02:36]}  Qxd1 {[%clk 0:02:34]} 14. Raxd1 {[%clk 0:02:36]}  Kxg7 {[%clk 0:02:34]} 15. c3 {[%clk 0:02:31]}  Be6 {[%clk 0:02:31]} 16. b3 {[%clk 0:02:29]}  Rfd8 {[%clk 0:02:14]} 17. Be2 {[%clk 0:02:28]}  Kf6 {[%clk 0:02:04]} 18. f3 {[%clk 0:02:27]}  Rxd1 {[%clk 0:02:02]} 19. Bxd1 {[%clk 0:02:22]}  e3 {[%clk 0:01:34]} 20. Re1 {[%clk 0:02:21]}  Rd8 {[%clk 0:01:32]} 21. Bc2 {[%clk 0:02:14]}  Rd2 {[%clk 0:01:31]} 22. Be4 {[%clk 0:02:11]}  b6 {[%clk 0:01:20]} 23. Rxe3 {[%clk 0:02:08]}  Rxa2 {[%clk 0:01:19]} 24. c4 {[%clk 0:02:04]}  Ra3 {[%clk 0:01:15]} 25. Bc6 {[%clk 0:01:51]}  Bxc4 {[%clk 0:01:07]} 26. Ba4 {[%clk 0:01:45]}  b5 {[%clk 0:00:58]} 27. Kf2 {[%clk 0:01:37]}  bxa4 {[%clk 0:00:55]} 28. bxc4 {[%clk 0:01:36]}  Rxe3 {[%clk 0:00:55]} 29. Kxe3 {[%clk 0:01:37]}  a3 {[%clk 0:00:55]} 30. Kd2 {[%clk 0:01:37]}  a2 {[%clk 0:00:56]} 31. Kc2 {[%clk 0:01:37]}  a1=Q {[%clk 0:00:57]} 0-1


[Site "https://www.chess.com"]